[Event "FRA-chTW Top 12 2019"]
[Site "Vandoeuvre"]
[Date "2019.05.05"]
[Round "5.6"]
[White "Cramling, Pia"]
[Black "Bensdorp-De Labaca, Marlies"]
[Result "1-0"]
[ECO "A13"]
[WhiteElo "2454"]
[BlackElo "2229"]
[Annotator "RC"]
[PlyCount "157"]
[EventDate "2019.05.02"]
[EventType "team-tourn"]
[EventCountry "FRA"]
[SourceTitle "playchess.com"]
[Source "ChessBase"]
[SourceQuality "1"]
[TimeControl "40/5400+30:1800+30"]

1. c4 {[%emt 0:00:00]} e6 {[%emt 0:00:00]} 2. g3 {[%emt 0:01:50]} d5 {[%emt 0:00:08]} 3. Bg2 {[%emt 0:00:11]} Nf6 {[%emt 0:00:18]} 4. Nf3 {[%emt 0:00:26]} dxc4 {[%emt 0:00:18]} 5. Qa4+ {[%emt 0:00:22]} Nbd7 {[%emt 0:00:06]} 6. Qxc4 {[%emt 0:00:45]} a6 {[%emt 0:00:08]} 7. Qc2 {[%emt 0:02:22]} c5 {[%emt 0:01:52]} 8. O-O {[%emt 0:07:57]} b5 {[%emt 0:00:34]} 9. a4 {[%emt 0:03:00]} Bb7 {[%emt 0:00:06]} 10. d3 {[%emt 0:01:42]} Be7 {[%emt 0:02:16]} 11. Nc3 {[%emt 0:02:27]} Qb6 {[%emt 0:11:39]} 12. e4 {[%emt 0:05:25]} O-O {[%emt 0:03:46]} 13. h3 {[%emt 0:00:24]} Rac8 {[%emt 0:06:13]} 14. Be3 {[%emt 0:02:02]} b4 {[%emt 0:02:54]} 15. Nb1 {[%emt 0:04:10]} Qc7 {[%emt 0:01:26]} 16. Nbd2 {[%emt 0:05:24]} Rfd8 {[%emt 0:07:50]} 17. Nc4 {[%emt 0:02:13]} e5 {[%emt 0:00:42]} 18. a5 {[%emt 0:07:28]} Bc6 {[%emt 0:02:45]} 19. Rfc1 {[%emt 0:07:23]} Bb5 {[%emt 0:00:23]} 20. Qe2 {[%emt 0:00:38]} Ne8 {[%emt 0:01:08]} 21. h4 {[%emt 0:03:41]} Bxc4 {[%emt 0:04:28]} 22. Rxc4 {[%emt 0:05:27]} Nd6 {[%emt 0:00:16]} 23. Rcc1 {[%emt 0:01:55]} Nb7 {[%emt 0:11:20]} 24. Qc2 {[%emt 0:04:35]} Nf8 {[%emt 0:06:39]} 25. Bh3 {[%emt 0:01:25]} Rb8 {[%emt 0:00:55]} 26. d4 {[%emt 0:02:12]} exd4 {[%emt 0:01:45]} 27. Nxd4 {[%emt 0:02:22]} Bf6 {[%emt 0:03:34]} 28. Bf4 {[%emt 0:01:17]} Be5 {[%emt 0:02:16]} 29. Bxe5 {[%emt 0:00:15]} Qxe5 {[%emt 0:00:04]} 30. Nc6 {[%emt 0:00:06]} Qc7 {[%emt 0:00:36]} 31. Nxb8 {[%emt 0:00:57]} Rxb8 {[%emt 0:00:00]} 32. Qc4 {[%emt 0:06:53]} Nxa5 {[%emt 0:00:07]} 33. Qa2 {[%emt 0:00:24]} Nb7 {[%emt 0:08:03]} 34. Qxa6 {[%emt 0:00:08]} Nd6 {[%emt 0:01:09]} 35. Qa7 {[%emt 0:04:43]} Qxa7 {[%emt 0:04:27]} 36. Rxa7 {[%emt 0:00:06]} Nxe4 {[%emt 0:00:02]} 37. Bg2 {[%emt 0:00:10]} Nd6 {[%emt 0:00:21]} 38. Rxc5 {[%emt 0:00:12]} Ne6 {[%emt 0:00:07]} 39. Rca5 {[%emt 0:01:16]} Nc4 {[%emt 0:00:34]} 40. Ra8 {[%emt 0:00:28]} Rf8 {[%emt 0:00:04]} 41. Rxf8+ {[%emt 0:30:31]} Nxf8 {[%emt 0:30:11]} 42. Ra7 {[%emt 0:05:50]} Nxb2 {[%emt 0:00:10]} 43. Bd5 {[%emt 0:00:09]} Ne6 {[%emt 0:01:16]} 44. Ra8+ {[%emt 0:00:12]} Nf8 {[%emt 0:00:06]} 45. Kf1 {[%emt 0:01:49]} Nd3 {[%emt 0:01:14]} 46. Rb8 {[%emt 0:00:45]} h6 {[%emt 0:02:34]} 47. Rb5 {[%emt 0:02:39]} Ne5 {[%emt 0:02:03]} 48. Rxb4 {[%emt 0:00:33]} g5 {[%emt 0:00:37]} 49. Re4 {[%emt 0:01:06]} Neg6 {[%emt 0:02:38]} 50. h5 {[%emt 0:01:22]} Nh8 {[%emt 0:00:05]} 51. Re7 {[%emt 0:01:39]} Kg7 {[%emt 0:00:26]} 52. g4 {[%emt 0:00:57]} Nh7 {[%emt 0:00:03]} 53. f3 {[%emt 0:00:29]} Nf6 {[%emt 0:00:08]} 54. Bc4 {[%emt 0:00:35]} Kf8 {[%emt 0:00:09]} 55. Ra7 {[%emt 0:00:16]} Kg7 {[%emt 0:00:03]} 56. Ke2 {[%emt 0:00:10]} Nh7 {[%emt 0:00:39]} 57. Ke3 {[%emt 0:00:10]} Nf6 {[%emt 0:01:10]} 58. Kd4 {[%emt 0:00:15]} Ng8 {[%emt 0:00:33]} 59. Ke5 {[%emt 0:00:38]} Nf6 {[%emt 0:00:08]} 60. Bb5 {[%emt 0:00:37]} Ng8 {[%emt 0:00:11]} 61. Bc6 {[%emt 0:01:01]} Kf8 {[%emt 0:00:14]} 62. Be4 {[%emt 0:01:14]} Kg7 {[%emt 0:00:26]} 63. Ra8 {[%emt 0:00:46]} Ne7 {[%emt 0:01:30]} 64. Re8 {[%emt 0:00:33]} Ng8 {[%emt 0:00:11]} 65. Bf5 {[%emt 0:00:42]} f6+ {[%emt 0:00:21]} 66. Kd5 {[%emt 0:01:20]} Kf7 {[%emt 0:00:14]} 67. Ra8 {[%emt 0:00:12]} Ne7+ {[%emt 0:00:04]} 68. Ke4 {[%emt 0:00:14]} Kg7 {[%emt 0:00:34]} 69. Be6 {[%emt 0:00:20]} Nf7 {[%emt 0:00:15]} 70. Ra7 {[%emt 0:01:09]} Nd6+ {[%emt 0:00:11]} 71. Kd3 {[%emt 0:00:42]} Kf8 {[%emt 0:00:14]} 72. Bb3 {[%emt 0:00:32]} Nf7 {[%emt 0:02:44]} 73. Bxf7 {[%emt 0:00:26]} Kxf7 {[%emt 0:00:04]} 74. Kd4 {[%emt 0:00:18]} Ke6 {[%emt 0:00:21]} 75. Ra6+ {[%emt 0:00:04]} Kf7 {[%emt 0:00:06]} 76. Kc5 {[%emt 0:00:06]} Kg7 {[%emt 0:01:14]} 77. Kd6 {[%emt 0:00:11]} Ng8 {[%emt 0:00:32]} 78. Ke6 {[%emt 0:00:17]} Kf8 {[%emt 0:00:59]} 79. Ra7 {[%emt 0:00:11]} 1-0

[Event "FRA-chTW Top 12 2019"]
[Site "Vandoeuvre"]
[Date "2019.05.05"]
[Round "5.7"]
[White "Verot, Melanie"]
[Black "Dornbusch, Tatiana"]
[Result "1/2-1/2"]
[ECO "B03"]
[WhiteElo "2069"]
[BlackElo "2285"]
[Annotator "ChessBase"]
[PlyCount "55"]
[EventDate "2019.05.02"]
[EventType "team-tourn"]
[EventCountry "FRA"]
[SourceTitle "playchess.com"]
[Source "ChessBase"]
[SourceQuality "1"]
[TimeControl "40/5400+30:1800+30"]

1. e4 {[%emt 0:04:22]} Nf6 {[%emt 0:00:39]} 2. e5 {[%emt 0:00:43]} Nd5 {[%emt 0:00:05]} 3. d4 {[%emt 0:00:10]} d6 {[%emt 0:00:23]} 4. c4 {[%emt 0:00:11]} Nb6 {[%emt 0:00:10]} 5. exd6 {[%emt 0:00:10]} exd6 {[%emt 0:00:50]} 6. Nc3 {[%emt 0:01:03]} Be7 {[%emt 0:00:45]} 7. Bd3 {[%emt 0:01:07]} Nc6 {[%emt 0:00:53]} 8. d5 {[%emt 0:03:14]} Ne5 {[%emt 0:01:53]} 9. Nge2 {[%emt 0:02:15]} O-O {[%emt 0:03:19]} 10. f4 {[%emt 0:04:50]} Nxd3+ {[%emt 0:10:52]} 11. Qxd3 {[%emt 0:00:07]} g6 {[%emt 0:02:04]} 12. Ng3 {[%emt 0:12:19]} f5 {[%emt 0:29:32]} 13. Be3 {[%emt 0:05:45]} Bf6 {[%emt 0:00:29]} 14. O-O {[%emt 0:00:58]} Nd7 {[%emt 0:03:17]} 15. b4 {[%emt 0:09:09]} a5 {[%emt 0:01:33]} 16. a3 {[%emt 0:00:42]} Bg7 {[%emt 0:07:14]} 17. Bd4 {[%emt 0:02:20]} Nf6 {[%emt 0:00:19]} 18. Rfe1 {[%emt 0:03:09]} Bd7 {[%emt 0:02:50]} 19. c5 {[%emt 0:08:11]} axb4 {[%emt 0:03:25]} 20. axb4 {[%emt 0:00:22]} Rxa1 {[%emt 0:00:19]} 21. Rxa1 {[%emt 0:00:05]} Qe7 {[%emt 0:00:22]} 22. Ra2 {[%emt 0:03:25]} Qe1+ {[%emt 0:04:07]} 23. Qf1 {[%emt 0:01:09]} Re8 {[%emt 0:03:22]} 24. Qxe1 {[%emt 0:03:16]} Rxe1+ {[%emt 0:00:04]} 25. Kf2 {[%emt 0:00:09]} Re8 {[%emt 0:01:18]} 26. Kg1 {[%emt 0:03:09]} Re1+ {[%emt 0:15:28]} 27. Kf2 {[%emt 0:00:32]} Re8 {[%emt 0:00:24]} 28. Kg1 {[%emt 0:00:14]} 1/2-1/2

[Event "FRA-chTW Top 12 2019"]
[Site "Vandoeuvre"]
[Date "2019.05.05"]
[Round "5.7"]
[White "Afraoui, Anaelle"]
[Black "Nicolas, Gabrielle"]
[Result "1-0"]
[ECO "C14"]
[WhiteElo "2068"]
[BlackElo "1733"]
[Annotator "NA RC"]
[PlyCount "95"]
[EventDate "2019.05.02"]
[EventType "team-tourn"]
[EventCountry "FRA"]
[SourceTitle "playchess.com"]
[Source "ChessBase"]
[SourceQuality "1"]
[TimeControl "40/5400+30:1800+30"]

1. e4 {[%emt 0:00:00]} e6 {[%emt 0:00:00]} 2. d4 {[%emt 0:00:00]} d5 {[%emt 0:00:17]} 3. Nc3 {[%emt 0:00:00]} Nf6 {[%emt 0:00:49]} 4. Bg5 {[%emt 0:00:00]} Be7 {[%emt 0:01:35]} 5. e5 {[%emt 0:00:00]} Nfd7 {[%emt 0:05:18]} 6. Bxe7 {[%emt 0:00:11]} Qxe7 {[%emt 0:00:10]} 7. f4 {[%emt 0:00:05]} a6 {[%emt 0:03:21]} 8. Nf3 {[%emt 0:00:15]} c5 {[%emt 0:01:10]} 9. dxc5 {[%emt 0:00:07]} Nc6 {[%emt 0:04:15]} 10. Qd2 {[%emt 0:00:10]} Qxc5 {[%emt 0:07:37]} 11. O-O-O {[%emt 0:00:17]} b5 {[%emt 0:00:57]} 12. Bd3 {[%emt 0:00:16]} Nb6 {[%emt 0:04:45]} 13. Ne2 {[%emt 0:10:29] C14: French: Classical System: 4 Bg5 Be7 main line} (13. Kb1 Bb7 14. f5 O-O-O 15. Qg5 g6 16. fxe6 fxe6 17. Rhf1 Kb8 18. Qf6 Rhf8 19. Qh4 Nc4 20. Bxc4 Qxc4 21. Qxh7 {0-1 (29) Seres,L (2482)-Cao,S (2540) Hungary 2003}) 13... Bd7 {[%emt 0:06:50]} 14. h4 {[%emt 0:06:28]} Nb4 $146 {[%emt 0:05:02]} ({Predecessor:} 14... b4 15. Kb1 h6 16. h5 Na4 17. g4 Rb8 18. Ka1 Qa5 19. f5 Nc5 20. Ned4 Ne4 21. Bxe4 dxe4 22. fxe6 fxe6 23. Nxc6 Bxc6 24. Qd6 {1-0 (24) Radovanovic,J (2217)-Mack,A (2262) West Bromwich 2004}) 15. Kb1 {[%emt 0:04:04]} a5 {[%emt 0:21:41]} 16. Rhf1 {[%emt 0:08:46]} O-O {[%emt 0:02:50]} 17. Ng5 {[%emt 0:06:39]} h6 {[%emt 0:01:15]} 18. Nf3 {[%emt 0:00:42]} Rfc8 {[%emt 0:01:57]} 19. Nfd4 {[%emt 0:06:47]} Nc4 {[%emt 0:03:06]} 20. Bxc4 $1 {[%emt 0:00:48]} Qxc4 $14 {[%emt 0:01:32]} 21. Nc1 {[%emt 0:00:54]} Ra7 {[%emt 0:03:49]} 22. Rf3 {[%emt 0:04:25]} Nc6 {[%emt 0:06:39]} 23. Nxc6 {[%emt 0:03:29]} Rxc6 {[%emt 0:02:05]} 24. Ne2 {[%emt 0:04:09]} b4 {[%emt 0:01:59]} 25. Nd4 {[%emt 0:00:53]} Rc8 {[%emt 0:00:27]} 26. g4 {[%emt 0:01:20]} a4 {[%emt 0:03:22]} 27. h5 {[%emt 0:09:59]} Rb8 {[%emt 0:02:49]} 28. g5 {[%emt 0:02:59]} hxg5 {[%emt 0:02:38]} 29. fxg5 {[%emt 0:00:13]} Qc5 {[%emt 0:03:02]} 30. g6 {[%emt 0:04:20]} Be8 {[%emt 0:00:29]} 31. h6 {[%emt 0:01:07]} Qe7 {[%emt 0:01:49]} 32. gxf7+ {[%emt 0:01:28]} Bxf7 {[%emt 0:00:01]} 33. Nc6 {[%emt 0:00:32]} Qc7 {[%emt 0:00:14]} 34. Nxa7 {[%emt 0:00:20]} Bh5 {[%emt 0:00:15]} 35. Rg3 {[%emt 0:01:59]} g6 {[%emt 0:00:42]} 36. Rh1 {[%emt 0:01:43]} Kh8 {[%emt 0:00:22]} 37. Qg5 {[%emt 0:00:17]} Rf8 {[%emt 0:02:09]} 38. Qe3 {[%emt 0:01:32]} Qc4 {[%emt 0:01:00]} 39. Rc1 {[%emt 0:00:42]} d4 {[%emt 0:00:41]} 40. Qd3 {[%emt 0:00:44]} Qd5 {[%emt 0:00:13]} 41. Nb5 {[%emt 0:30:18]} Rd8 {[%emt 0:30:24]} 42. Nd6 {[%emt 0:00:08]} Rd7 {[%emt 0:00:20]} 43. Qe4 {[%emt 0:00:47]} Rxd6 {[%emt 0:00:20]} 44. Qf4 {[%emt 0:02:05]} Rd7 {[%emt 0:00:43]} 45. Qf6+ {[%emt 0:00:30]} Kg8 {[%emt 0:00:07]} 46. Rcg1 {[%emt 0:00:50]} Rf7 {[%emt 0:00:38]} 47. h7+ {[%emt 0:00:40]} Rxh7 {[%emt 0:00:49]} 48. Rxg6+ {[%emt 0:00:04]} 1-0

[Event "FRA-chTW Top 12 2019"]
[Site "Vandoeuvre"]
[Date "2019.05.05"]
[Round "5.8"]
[White "Leconte, Maria"]
[Black "Gras, Delphine"]
[Result "1-0"]
[ECO "B18"]
[WhiteElo "2246"]
[BlackElo "1835"]
[Annotator "NA"]
[PlyCount "53"]
[EventDate "2019.05.02"]
[EventType "team-tourn"]
[EventCountry "FRA"]
[SourceTitle "playchess.com"]
[Source "ChessBase"]
[SourceQuality "1"]
[TimeControl "40/5400+30:1800+30"]

1. e4 {[%emt 0:00:00]} c6 {[%emt 0:00:00]} 2. d4 {[%emt 0:00:00]} d5 {[%emt 0:00:00]} 3. Nc3 {[%emt 0:00:00]} dxe4 {[%emt 0:00:00]} 4. Nxe4 {[%emt 0:00:00]} Bf5 {[%emt 0:00:00]} 5. Ng3 {[%emt 0:00:00]} Bg6 {[%emt 0:00:00]} 6. Nh3 {[%emt 0:00:03]} e6 {[%emt 0:03:31]} 7. Bc4 {[%emt 0:00:28]} Nf6 {[%emt 0:01:51]} 8. O-O {[%emt 0:00:17]} Bd6 {[%emt 0:00:43]} 9. f4 {[%emt 0:00:30]} Qc7 {[%emt 0:06:16]} 10. Kh1 {[%emt 0:00:18]} O-O {[%emt 0:02:26]} (10... b5 $5 {[%cal Rb5c4]} 11. Bb3 O-O $11) 11. f5 {[%emt 0:14:21]} exf5 {[%emt 0:03:11]} 12. Nxf5 {[%emt 0:03:56]} Bxh2 {[%emt 0:06:39]} 13. Nh6+ {[%emt 0:01:40]} (13. Nxg7 $11 {remains equal.} Kxg7 {[#]} 14. Rxf6 $1 {[%mdl 512]}) 13... Kh8 {[%emt 0:00:56]} 14. Rxf6 {[%emt 0:04:00]} gxf6 {[%emt 0:03:08]} 15. Qf3 {[%emt 0:15:11]} Nd7 {[%emt 0:04:10]} 16. Ng4 {[%emt 0:00:48]} Bh5 {[%emt 0:12:44]} 17. Nhf2 {[%emt 0:28:42]} Rae8 $2 {[%emt 0:10:15]} (17... Qg3 $19 18. Bd3 Qxf3 19. gxf3 Bc7) 18. Bh6 {[%emt 0:01:08]} Rg8 {[%emt 0:04:07]} 19. Qh3 {[%emt 0:01:12]} Bxg4 {[%emt 0:06:43]} 20. Nxg4 {[%emt 0:00:05]} Qg3 {[%emt 0:04:32]} 21. Nxh2 {[%emt 0:02:13]} Re1+ {[%emt 0:05:58]} 22. Rxe1 {[%emt 0:00:07]} Qxe1+ {[%emt 0:00:01]} 23. Nf1 {[%emt 0:00:19]} Nb6 {[%emt 0:09:37]} 24. Bd3 {[%emt 0:00:10]} Qe6 {[%emt 0:09:31]} 25. Bf5 {[%emt 0:01:29]} Qc4 {[%emt 0:01:03]} 26. Nd2 {[%emt 0:02:24]} Qd5 {[%emt 0:00:59] [#]} 27. Bg5 $18 {[%emt 0:02:02]} 1-0

[Event "FRA-chTW Top 12 2019"]
[Site "Vandoeuvre"]
[Date "2019.05.05"]
[Round "5.9"]
[White "Savina, Anastasia"]
[Black "Heinemann, Josefine"]
[Result "1/2-1/2"]
[ECO "E15"]
[WhiteElo "2353"]
[BlackElo "2227"]
[Annotator "NA RC"]
[PlyCount "69"]
[EventDate "2019.05.02"]
[EventType "team-tourn"]
[EventCountry "FRA"]
[SourceTitle "playchess.com"]
[Source "ChessBase"]
[SourceQuality "1"]
[TimeControl "40/5400+30:1800+30"]

1. d4 {[%emt 0:00:02]} Nf6 {[%emt 0:00:00]} 2. c4 {[%emt 0:00:10]} e6 {[%emt 0:00:00]} 3. Nf3 {[%emt 0:04:21]} b6 {[%emt 0:00:00]} 4. g3 {[%emt 0:02:41]} Ba6 {[%emt 0:00:45]} 5. Nbd2 {[%emt 0:00:40]} d5 {[%emt 0:00:10]} 6. Bg2 {[%emt 0:02:17]} Be7 {[%emt 0:00:06]} 7. O-O {[%emt 0:08:02] E15: Queen's Indian: 4 g3 sidelines, 4 g3 Ba6 and 4 g3 Bb7 early deviations} (7. cxd5 exd5 8. b4 O-O 9. Rb1 c5 10. dxc5 bxc5 11. b5 Bb7 12. O-O Nbd7 13. Nh4 Re8 14. a4 Bf8 {½-½ (68) Antipov,M (2588)-Harikrishna,P (2745) Caleta 2018}) 7... O-O {[%emt 0:00:05]} 8. Re1 {[%emt 0:05:22]} Nbd7 {[%emt 0:05:09]} 9. b3 {[%emt 0:21:43]} c5 {[%emt 0:07:17]} 10. Bb2 {[%emt 0:00:53]} Rc8 {[%emt 0:03:36]} 11. dxc5 $146 {[%emt 0:05:58]} ({Predecessor:} 11. e4 dxe4 12. Nxe4 Nxe4 13. Rxe4 Bb7 14. Re2 cxd4 15. Nxd4 Bxg2 16. Kxg2 {1-0 (32) Zubarev,A (2597)-Fakhiridou,E (2183) Kavala 2011}) 11... bxc5 {[%emt 0:05:22]} 12. e4 {[%emt 0:13:46]} dxe4 {[%emt 0:05:52]} 13. Ng5 {[%emt 0:03:53]} Bb7 {[%emt 0:03:34]} 14. Ndxe4 {[%emt 0:02:53]} Qc7 {[%emt 0:05:59]} 15. Qc2 {[%emt 0:04:53]} Nxe4 {[%emt 0:08:55]} 16. Nxe4 {[%emt 0:00:13]} f5 {[%emt 0:05:10]} 17. Nd2 {[%emt 0:02:28]} e5 {[%emt 0:04:11]} 18. Bd5+ {[%emt 0:03:49]} Bxd5 {[%emt 0:01:35]} 19. cxd5 {[%emt 0:00:02]} e4 {[%emt 0:04:54]} 20. Nc4 {[%emt 0:01:06]} Bd6 {[%emt 0:01:05] [#]} 21. Qc3 {[%emt 0:05:20]} ({White should try} 21. f3 $1 $16) 21... Rf7 {[%emt 0:00:46]} 22. Rac1 {[%emt 0:04:05]} h5 {[%emt 0:06:00]} 23. Qd2 {[%emt 0:03:13]} h4 {[%emt 0:03:22]} 24. Qg5 {[%emt 0:00:20]} hxg3 {[%emt 0:00:17]} 25. hxg3 {[%emt 0:00:05]} Ne5 {[%emt 0:03:06]} (25... Be5 $1 $11 {remains equal.}) 26. Bxe5 {[%emt 0:01:27]} Bxe5 {[%emt 0:00:04]} 27. Kg2 {[%emt 0:00:58]} Bd4 {[%emt 0:02:33]} 28. Rh1 $16 {[%emt 0:01:27]} f4 {[%emt 0:03:05]} 29. Qg6 {[%emt 0:01:51]} Rf6 {[%emt 0:03:17]} 30. Qxe4 {[%emt 0:00:29]} fxg3 {[%emt 0:00:30]} 31. Qh7+ {[%emt 0:00:14]} Kf7 {[%emt 0:01:31]} 32. Qh5+ {[%emt 0:00:01]} Kg8 {[%emt 0:01:12]} 33. Qh7+ {[%emt 0:01:06]} Kf7 {[%emt 0:00:39]} 34. Qh5+ {[%emt 0:00:39]} Kg8 {[%emt 0:01:06]} 35. Qh7+ {[%emt 0:00:18]} 1/2-1/2

[Event "FRA-chTW Top 12 2019"]
[Site "Vandoeuvre"]
[Date "2019.05.05"]
[Round "5.10"]
[White "Skripchenko, Almira"]
[Black "Marin Benito, Carla"]
[Result "1-0"]
[ECO "C78"]
[WhiteElo "2406"]
[BlackElo "1978"]
[Annotator "RC"]
[PlyCount "117"]
[EventDate "2019.05.02"]
[EventType "team-tourn"]
[EventCountry "FRA"]
[SourceTitle "playchess.com"]
[Source "ChessBase"]
[SourceQuality "1"]
[TimeControl "40/5400+30:1800+30"]

1. e4 {[%emt 0:00:26]} e5 {[%emt 0:00:00]} 2. Nf3 {[%emt 0:00:13]} Nc6 {[%emt 0:00:00]} 3. Bb5 {[%emt 0:03:37]} a6 {[%emt 0:00:37]} 4. Ba4 {[%emt 0:00:07]} Nf6 {[%emt 0:00:15]} 5. d3 {[%emt 0:00:06]} b5 {[%emt 0:01:14]} 6. Bb3 {[%emt 0:00:05]} h6 {[%emt 0:01:59]} 7. O-O {[%emt 0:08:06]} Bc5 {[%emt 0:04:26]} 8. c3 {[%emt 0:00:13]} O-O {[%emt 0:01:24]} 9. d4 {[%emt 0:10:34]} exd4 {[%emt 0:01:53]} 10. cxd4 {[%emt 0:01:36]} Bb6 {[%emt 0:07:30]} 11. e5 {[%emt 0:02:17]} Ne8 {[%emt 0:07:01]} 12. Qd3 {[%emt 0:35:20]} d5 {[%emt 0:30:45]} 13. a4 {[%emt 0:03:43]} bxa4 {[%emt 0:04:22]} 14. Bc2 {[%emt 0:04:35]} f5 {[%emt 0:00:26]} 15. Bxa4 {[%emt 0:00:09]} Nb4 {[%emt 0:03:46]} 16. Qb3 {[%emt 0:04:59]} c5 {[%emt 0:09:59]} 17. dxc5 {[%emt 0:07:12]} Bxc5 {[%emt 0:00:08]} 18. Be3 {[%emt 0:00:16]} Bxe3 {[%emt 0:01:23]} 19. Qxe3 {[%emt 0:00:47]} Nc7 {[%emt 0:04:42]} 20. Nc3 {[%emt 0:00:41]} Ne6 {[%emt 0:00:48]} 21. Rfd1 {[%emt 0:00:05]} Bb7 {[%emt 0:00:43]} 22. Bb3 {[%emt 0:01:06]} Kh8 {[%emt 0:05:06]} 23. Ne2 {[%emt 0:00:33]} f4 {[%emt 0:01:10]} 24. Qd2 {[%emt 0:00:05]} Qb6 {[%emt 0:00:22]} 25. Rac1 {[%emt 0:04:05]} a5 {[%emt 0:01:59]} 26. Ned4 {[%emt 0:02:44]} Nxd4 {[%emt 0:00:36]} 27. Qxd4 {[%emt 0:01:26]} Qxd4 {[%emt 0:00:37]} 28. Nxd4 {[%emt 0:00:04]} Rac8 {[%emt 0:01:19]} 29. Ra1 {[%emt 0:01:28]} Rc5 {[%emt 0:01:00]} 30. Ne6 {[%emt 0:00:07]} Rfc8 {[%emt 0:00:26]} 31. Nxc5 {[%emt 0:00:06]} Rxc5 {[%emt 0:00:01]} 32. Rac1 {[%emt 0:00:13]} Rxc1 {[%emt 0:01:28]} 33. Rxc1 {[%emt 0:00:05]} Bc6 {[%emt 0:00:10]} 34. e6 {[%emt 0:02:13]} Kg8 {[%emt 0:00:36]} 35. Bxd5 {[%emt 0:04:27]} Bxd5 {[%emt 0:00:10]} 36. Rc8+ {[%emt 0:00:04]} Kh7 {[%emt 0:00:08]} 37. e7 {[%emt 0:00:02]} Bf7 {[%emt 0:00:07]} 38. e8=Q {[%emt 0:00:05]} Bxe8 {[%emt 0:00:07]} 39. Rxe8 {[%emt 0:00:03]} Kg6 {[%emt 0:00:29]} 40. Re5 {[%emt 0:01:07]} Nd3 {[%emt 0:00:31]} 41. Rb5 {[%emt 0:30:04]} a4 {[%emt 0:30:15]} 42. Kf1 {[%emt 0:00:06]} Kf6 {[%emt 0:04:06]} 43. Ke2 {[%emt 0:00:20]} Nc1+ {[%emt 0:03:57]} 44. Kd2 {[%emt 0:00:11]} Nb3+ {[%emt 0:00:04]} 45. Kc3 {[%emt 0:00:07]} Nc1 {[%emt 0:00:13]} 46. Ra5 {[%emt 0:00:59]} Ne2+ {[%emt 0:02:04]} 47. Kd3 {[%emt 0:01:11]} Nc1+ {[%emt 0:00:18]} 48. Ke4 {[%emt 0:00:19]} Nb3 {[%emt 0:00:31]} 49. Rf5+ {[%emt 0:01:07]} Ke6 {[%emt 0:00:33]} 50. Rxf4 {[%emt 0:00:14]} Nc5+ {[%emt 0:01:15]} 51. Ke3 {[%emt 0:00:26]} Ke5 {[%emt 0:01:06]} 52. Rb4 {[%emt 0:00:33]} Kd5 {[%emt 0:00:30]} 53. h4 {[%emt 0:00:12]} Ke5 {[%emt 0:00:21]} 54. f4+ {[%emt 0:00:26]} Kd5 {[%emt 0:00:09]} 55. h5 {[%emt 0:00:15]} Kc6 {[%emt 0:00:43]} 56. g4 {[%emt 0:00:11]} Kd5 {[%emt 0:00:19]} 57. g5 {[%emt 0:01:19]} Kc6 {[%emt 0:01:09]} 58. Kd4 {[%emt 0:01:01]} hxg5 {[%emt 0:00:11]} 59. Rc4 {[%emt 0:05:19]} 1-0

[Event "FRA-chTW Top 12 2019"]
[Site "Vandoeuvre"]
[Date "2019.05.05"]
[Round "5.11"]
[White "Choisy, Mathilde"]
[Black "Haussernot, Cecile"]
[Result "1/2-1/2"]
[ECO "B86"]
[WhiteElo "2113"]
[BlackElo "2097"]
[Annotator "NA RC"]
[PlyCount "72"]
[EventDate "2019.05.02"]
[EventType "team-tourn"]
[EventCountry "FRA"]
[SourceTitle "playchess.com"]
[Source "ChessBase"]
[SourceQuality "1"]
[TimeControl "40/5400+30:1800+30"]

1. e4 {[%emt 0:00:00]} c5 {[%emt 0:00:00]} 2. Nf3 {[%emt 0:00:00]} d6 {[%emt 0:00:00]} 3. d4 {[%emt 0:00:00]} cxd4 {[%emt 0:00:00]} 4. Nxd4 {[%emt 0:00:00]} Nf6 {[%emt 0:00:00]} 5. Nc3 {[%emt 0:00:00]} a6 {[%emt 0:00:00]} 6. Bc4 {[%emt 0:00:07]} e6 {[%emt 0:00:26]} 7. O-O {[%emt 0:00:09]} Be7 {[%emt 0:02:38]} 8. Bb3 {[%emt 0:00:05]} O-O {[%emt 0:00:16]} 9. f4 {[%emt 0:00:18]} Qc7 {[%emt 0:01:45]} 10. f5 {[%emt 0:04:10]} e5 {[%emt 0:03:31]} 11. Nde2 {[%emt 0:00:24]} b5 {[%emt 0:00:29] B86: Sicilian Scheveningen/Najdorf: 6 Bc4, without early ...b5} 12. Ng3 {[%emt 0:09:33]} Bb7 {[%emt 0:00:46]} 13. a3 {[%emt 0:12:38]} Nbd7 {[%emt 0:02:57]} 14. Qe2 $146 {[%emt 0:02:02]} ({Predecessor:} 14. Bg5 Nb6 15. Bxf6 Bxf6 16. Nh5 Kh8 17. Nxf6 gxf6 18. Qh5 Nc4 19. Rf3 Rg8 20. Qh6 Qe7 21. Rh3 Rg7 22. Rf1 {0-1 (30) Biriukov,A (2218)-Aghasiyev,K (2411) Efremov 2017}) 14... Nc5 {[%emt 0:04:29]} 15. Bg5 {[%emt 0:08:01]} Nxb3 {[%emt 0:02:04]} 16. cxb3 {[%emt 0:00:06]} h6 {[%emt 0:00:15]} 17. Bxf6 {[%emt 0:09:04]} Bxf6 {[%emt 0:00:07]} 18. Rad1 {[%emt 0:04:52]} b4 {[%emt 0:02:14]} 19. axb4 {[%emt 0:04:30]} Qb6+ {[%emt 0:00:09]} 20. Kh1 {[%emt 0:00:04]} Qxb4 {[%emt 0:00:11]} 21. Nh5 {[%emt 0:05:49]} Bg5 {[%emt 0:01:52]} 22. Qg4 {[%emt 0:03:31]} Kh7 {[%emt 0:02:11]} 23. h4 {[%emt 0:01:43]} Bf6 {[%emt 0:00:10]} 24. Nd5 {[%emt 0:15:17]} Bxd5 {[%emt 0:00:15]} 25. Rxd5 {[%emt 0:00:05]} Rac8 {[%emt 0:03:10]} 26. Rfd1 {[%emt 0:01:31]} Rfd8 {[%emt 0:00:44]} 27. Nxf6+ {[%emt 0:02:56]} gxf6 {[%emt 0:00:07]} 28. Qf3 {[%emt 0:01:34]} Rc2 {[%emt 0:01:17]} 29. Qh5 {[%emt 0:09:27]} Rg8 {[%emt 0:01:40]} 30. Rxd6 {[%emt 0:02:27]} Rcxg2 {[%emt 0:06:14]} 31. Rxf6 {[%emt 0:00:19]} Rg1+ $1 {[%emt 0:00:37]} 32. Rxg1 {[%emt 0:00:21]} Qxe4+ {[%emt 0:00:05]} 33. Kh2 $11 {[%emt 0:00:14]} Qf4+ {[%emt 0:00:09]} 34. Kh1 {[%emt 0:02:17]} Qe4+ {[%emt 0:00:06]} 35. Kh2 {[%emt 0:00:03]} Qf4+ {[%emt 0:00:04]} 36. Kh1 {[%emt 0:00:03]} Qe4+ {[%emt 0:00:03]} 1/2-1/2